bitfinex-derivatives/quotes_ETHF0:USTF0_20250923
["timestamp","ask_amount","ask_price","bid_price","bid_amount"]
[1758588926650,0.99021358,4192.9,4192.8,1.80329729]
[1758588928048,1.6736727,4192.9,4192.8,1.38649729]
[1758588931152,1.6736727,4192.9,4192.8,1.14549729]
[1758588935643,0.84851,4192.8,4192.7,0.241]
[1758588935841,2.1090827,4192.8,4192.7,0.241]
[1758588937652,0.42893,4192.6,4192.5,1.14549729]
[1758588937852,0.42893,4192.6,4192.5,1.38649729]
[1758588937853,1.42564358,4192.6,4192.5,1.38649729]
[1758588938060,2.1091027,4192.6,4192.5,1.38649729]
[1758588938660,2.1091027,4192.6,4192.5,1.59369729]
[1758588941563,1.42564358,4192.6,4192.5,1.80209729]
[1758588941759,1.00604358,4192.6,4192.5,1.93229729]
[1758588941955,1.00604358,4192.6,4192.5,1.69129729]
[1758588942263,1.00604358,4192.6,4192.5,1.93229729]
[1758588942864,1.21284358,4192.6,4192.5,1.93229729]
[1758588943157,1.21621121,4192.6,4192.5,1.93229729]
[1758588943460,1.21621121,4192.6,4192.5,1.80209729]
[1758588945958,1.21621121,4192.6,4192.5,1.93229729]
[1758588946256,1.21621121,4192.6,4192.5,1.80209729]
[1758588947066,1.42901121,4192.6,4192.5,1.80209729]
[1758588947451,1.16756,4192.3,4192.2,4.35329729]
[1758588947658,2.11299639,4192.3,4192.2,0.241]
[1758588952665,2.11299639,4192.3,4192.2,0.4482]
[1758588952870,2.11299639,4192.3,4192.2,0.6566]
[1758588953265,2.11299639,4192.3,4192.2,0.4482]
[1758588953466,2.11299639,4192.3,4192.2,0.241]
[1758588953666,1.85151518,4192.3,4192.2,0.241]
[1758588953867,0.84858,4192.1,4192.0,1.53381504]
[1758588954067,1.42883856,4192.1,4192.0,1.53381504]
[1758588954360,1.42883856,4192.1,4192.0,1.77481504]
[1758588956970,1.42883856,4192.1,4192.0,1.56761504]
[1758588959475,0.74801,4191.8,4191.7,40.8]
[1758588959678,1.00926856,4191.8,4191.7,41.041]
[1758588960577,1.43316856,4191.8,4191.7,0.241]
[1758588962179,1.41656856,4191.8,4191.7,0.241]
[1758588963676,2.10115774,4191.8,4191.7,0.241]
[1758588964572,2.10115774,4191.8,4191.7,0.4425]
[1758588964772,1.20526856,4191.8,4191.7,0.7741]
[1758588966475,1.21343937,4191.8,4191.7,0.7741]
[1758588966982,0.57182937,4191.8,4191.7,0.7741]
[1758588967283,0.26942937,4191.8,4191.7,5.01266]
[1758588968684,0.26942937,4191.8,4191.7,4.7741]
[1758588970281,0.57182937,4191.8,4191.7,4.7741]
[1758588971674,1.42473937,4191.8,4191.7,0.2015]
[1758588971981,0.26942937,4191.8,4191.7,2.10071504]
[1758588972177,0.26942937,4191.8,4191.7,6.10071504]
[1758588972982,0.4334,4192.5,4192.4,0.4027]
[1758588973188,4.27994,4193.4,4192.7,0.5331]
[1758588973189,0.3024,4192.8,4192.7,0.5331]
[1758588973482,0.4239,4192.8,4192.7,40.8]
[1758588973673,0.4239,4192.8,4192.7,42.36761504]
[1758588974076,0.7263,4192.8,4192.7,42.36761504]
[1758588975588,0.7263,4192.8,4192.7,41.041]
[1758588976080,0.7682,4192.0,4191.9,3.6248]
[1758588976279,1.0935,4192.0,4191.9,5.19241504]
[1758588976675,1.0935,4192.0,4191.9,46.12271504]
[1758588976880,0.4487,4192.0,4191.9,46.12271504]
[1758588977075,0.42898,4192.2,4192.0,0.1303]
[1758588977281,0.75428,4192.2,4192.1,0.7883]
[1758588978387,0.97008,4192.2,4192.1,0.7883]
[1758588979389,1.17428,4192.2,4192.1,0.658]
[1758588980285,1.17428,4192.2,4192.1,0.241]
[1758588980691,0.87769,4192.0,4191.9,45.33441504]
[1758588980892,1.29769,4192.0,4191.9,3.4488]
[1758588981790,1.29769,4192.0,4191.9,4.77541504]
[1758588982387,1.29769,4192.0,4191.9,4.98391504]
[1758588982595,1.29769,4192.0,4191.9,3.4488]
[1758588983595,1.29769,4192.0,4191.9,3.2078]
[1758588983795,0.42,4191.4,4191.3,4.74291504]
[1758588983997,0.7453,4191.4,4191.3,4.98391504]
[1758588984390,1.17435,4191.4,4191.3,4.98391504]
[1758588984893,1.44012355,4191.4,4191.3,4.98391504]
[1758588985294,1.44012355,4191.4,4191.3,4.77541504]
[1758588985488,1.44012355,4191.4,4191.3,0.241]
[1758588985881,2.12416783,4191.4,4191.3,0.241]
[1758588986299,1.44012355,4191.4,4191.3,0.241]
[1758588989695,1.44012355,4191.4,4191.3,0.4495]
[1758588991093,1.17435,4191.4,4191.3,0.4495]
[1758588991296,1.43404198,4191.4,4191.3,0.4495]
[1758588992098,1.43404198,4191.4,4191.3,0.6582]
[1758588993502,1.43404198,4191.4,4191.3,0.4495]
[1758588994099,1.43404198,4191.4,4191.3,0.241]
[1758588995092,1.43404198,4191.4,4191.3,0.4463]
[1758588995287,1.43404198,4191.4,4191.3,0.241]
[1758588999203,1.43404198,4191.4,4191.3,0.4463]
[1758589000802,1.43404198,4191.4,4191.3,0.241]
[1758589002703,0.4291,4191.0,4190.9,1.32661504]
[1758589002904,1.54429198,4191.0,4190.9,1.77291504]
[1758589003202,1.54429198,4191.0,4190.9,0.241]
[1758589007405,0.84653,4190.7,4190.6,1.53191504]
[1758589007606,1.42122198,4190.7,4190.6,1.77291504]
[1758589008595,1.42122198,4190.7,4190.6,1.98161504]
[1758589008796,1.42122198,4190.7,4190.6,2.11211504]
[1758589009808,1.42122198,4190.7,4190.6,1.98161504]
[1758589010806,0.57469198,4190.7,4190.6,2.11211504]
[1758589011106,0.25969198,4190.7,4190.6,0.7855]
[1758589011306,0.57469198,4190.7,4190.6,0.7855]
[1758589012301,0.25969198,4190.7,4190.6,5.02412999]
[1758589012504,0.57469198,4190.7,4190.6,5.02412999]
[1758589012806,0.57469198,4190.7,4190.6,5.93243187]
[1758589014511,0.25969198,4190.7,4190.6,5.93243187]
[1758589015609,0.315,4191.3,4191.2,0.5445]
[1758589015812,0.315,4191.3,4191.2,5.14023187]
[1758589016210,0.5285,4191.3,4191.2,5.14023187]
[1758589016711,0.7324,4191.3,4191.2,5.00973187]
[1758589016907,0.7324,4191.3,4191.2,45.80973187]
[1758589018010,0.315,4191.3,4191.2,45.94023187]
[1758589019102,0.315,4191.7,4191.2,45.80973187]
[1758589019314,0.74401,4191.8,4191.7,0.5445]
[1758589019509,1.42903905,4191.8,4191.7,0.7855]
[1758589019909,1.64253905,4191.8,4191.7,0.7855]
[1758589020108,1.84643905,4191.8,4191.7,0.655]
[1758589020408,1.00002905,4191.8,4191.7,0.6561]
[1758589020609,0.1231,4193.0,4192.6,0.5508]
[1758589020909,3.6301,4193.4,4193.3,0.2098]
[1758589021112,3.6301,4193.4,4193.3,1.59773187]
[1758589021514,3.9586,4193.4,4193.3,1.59773187]
[1758589023416,3.9586,4193.4,4193.3,1.80753187]
[1758589023807,0.7508,4193.4,4193.3,1.80753187]
[1758589024517,0.1231,4193.5,4193.3,1.80753187]
[1758589024712,0.5348,4193.9,4193.8,0.4196]
[1758589024913,0.7508,4193.9,4193.8,0.241]
[1758589027722,0.99815085,4193.9,4193.8,0.241]
[1758589031119,0.99787522,4193.9,4193.8,0.241]
[1758589031519,1.17966,4193.3,4193.2,3.2078]
[1758589031719,1.42673522,4193.3,4193.2,3.4498]
[1758589031925,1.42673522,4193.3,4193.2,0.242]
[1758589035325,0.4223,4192.2,4192.1,4.56893187]
[1758589035631,0.1306,4192.5,4192.1,5.34923187]
[1758589035927,0.3334,4192.4,4192.3,0.7366]
[1758589036128,0.5414,4192.4,4192.3,0.7366]
[1758589036617,0.3334,4192.4,4192.3,0.7366]
[1758589036817,0.76234,4192.6,4192.4,0.3254]
[1758589037022,0.97034,4192.6,4192.5,0.6532]
[1758589037329,1.21751724,4192.6,4192.5,0.9786]
[1758589037632,0.78857724,4192.6,4192.5,0.9786]
[1758589037927,0.58057724,4192.6,4192.5,0.9786]
[1758589038227,0.24717724,4192.6,4192.5,0.9786]
[1758589038725,0.24717724,4192.6,4192.5,1.0443]
[1758589038928,0.97026,4193.4,4193.3,0.4112]
[1758589039229,0.97026,4193.4,4193.3,2.12553187]
[1758589039430,1.17886,4193.4,4193.3,2.12553187]
[1758589041319,1.17886,4193.4,4193.3,1.80013187]
[1758589041527,1.17886,4193.4,4193.3,0.242]
[1758589043826,0.84546,4193.4,4193.2,1.14693187]
[1758589044136,0.8828,4193.0,4192.9,1.14693187]
[1758589044431,0.8828,4193.0,4192.9,1.38893187]
[1758589044823,1.31169,4193.0,4192.9,1.38893187]
[1758589045024,0.75,4192.3,4192.2,40.8]
[1758589045234,0.75,4192.3,4192.2,42.18893187]
[1758589045540,0.6742,4193.0,4192.9,0.7366]
[1758589045748,0.3334,4193.0,4192.9,3.27246374]
[1758589046041,3.7492,4193.4,4193.3,0.7366]
[1758589046434,3.7672,4194.0,4193.3,1.88353187]
[1758589046633,4.0884,4194.0,4193.9,1.35393187]
[1758589047229,4.0884,4194.0,4193.9,1.55813187]
[1758589049644,4.75803606,4194.0,4193.9,1.14693187]
[1758589050942,4.99205174,4194.0,4193.9,1.14693187]
[1758589052340,4.99205174,4194.0,4193.9,1.36993187]
[1758589052541,4.99205174,4194.0,4193.9,1.14693187]
[1758589053538,4.99205174,4194.0,4193.9,1.58113187]
[1758589054352,1.78425174,4194.0,4193.9,1.58113187]
[1758589054945,1.78425174,4194.0,4193.9,1.14693187]
[1758589055349,1.78433543,4194.0,4193.9,1.14693187]
[1758589056347,4.99213543,4194.0,4193.9,1.14693187]
[1758589061344,1.11461568,4194.0,4193.9,1.58113187]
[1758589061549,1.11461568,4194.0,4193.9,1.90613187]
[1758589061752,0.23401568,4194.0,4193.9,1.90613187]
[1758589062151,0.78121568,4194.0,4193.9,1.90613187]
[1758589062349,0.91051568,4194.0,4193.9,1.90613187]
[1758589063455,0.78121568,4194.0,4193.9,1.90613187]
[1758589065258,1.12621568,4194.0,4193.9,1.38793187]
[1758589067461,1.7959624,4194.0,4193.9,1.38793187]
[1758589067660,1.7959624,4194.0,4193.9,1.14693187]
[1758589068164,1.79596585,4194.0,4193.9,1.14693187]
[1758589068760,1.79596585,4194.0,4193.9,1.36993187]
[1758589069358,1.79596585,4194.0,4193.9,1.14693187]
[1758589069960,5.00376585,4194.0,4193.9,1.14693187]
[1758589072365,5.00376585,4194.0,4193.9,1.36993187]
[1758589072963,5.00376585,4194.0,4193.9,1.14693187]
[1758589074562,0.4318,4193.8,4193.7,1.78958686]
[1758589074775,0.99691913,4193.8,4193.7,1.78958686]
[1758589075161,0.99691913,4193.8,4193.7,2.00078686]
[1758589075463,1.66490766,4193.8,4193.7,2.00078686]
[1758589076560,1.66528952,4193.8,4193.7,2.00078686]
[1758589077161,1.66528952,4193.8,4193.7,1.78958686]
[1758589077359,1.66528952,4193.8,4193.7,1.56658686]
[1758589078765,1.66528952,4193.8,4193.7,0.241]
[1758589079660,0.7629,4193.2,4193.1,4.75638686]
[1758589079856,0.99730099,4193.2,4193.1,5.20858686]
[1758589080057,0.56550099,4193.2,4193.1,5.53358686]
[1758589080262,0.78160099,4193.2,4193.1,5.53358686]
[1758589080668,0.99230099,4193.2,4193.1,5.53358686]
[1758589082366,0.78160099,4193.2,4193.1,5.53358686]
[1758589084273,0.99230099,4193.2,4193.1,5.53358686]
[1758589084475,0.99230099,4193.2,4193.1,1.54858686]
[1758589084771,0.99230099,4193.2,4193.1,1.78958686]
[1758589087176,0.99230099,4193.2,4193.1,2.33588686]
[1758589087869,0.99230099,4193.2,4193.1,2.00928686]
[1758589088467,0.99230099,4193.2,4193.1,2.33588686]
[1758589089475,0.99230099,4193.2,4193.1,2.00928686]
[1758589089666,0.99230099,4193.2,4193.1,2.33588686]
[1758589090777,0.99230099,4193.2,4193.1,2.00928686]
[1758589091668,0.99230099,4193.2,4193.1,1.78958686]
[1758589091976,0.99230099,4193.2,4193.1,2.33588686]
[1758589092163,0.56550099,4193.2,4193.1,2.33588686]
[1758589092369,0.23440099,4193.2,4193.1,2.33588686]
[1758589094369,0.45330099,4193.2,4193.1,2.33588686]
[1758589094580,0.76250099,4193.2,4193.1,2.33588686]
[1758589097878,0.98510099,4193.2,4193.1,2.00928686]
[1758589098267,0.76250099,4193.2,4193.1,2.32238686]
[1758589098674,0.54360099,4193.2,4193.1,2.32238686]
[1758589098879,0.23440099,4193.2,4193.1,2.32238686]
[1758589099979,0.56540099,4193.2,4193.1,2.32238686]
[1758589100278,0.99720099,4193.2,4193.1,2.32238686]
[1758589100480,0.99720099,4193.2,4193.1,2.00928686]
[1758589101275,0.99720099,4193.2,4193.1,2.32238686]
[1758589103976,1.02696197,4193.2,4193.1,2.32238686]
[1758589106176,0.26416197,4193.2,4193.1,2.32238686]
[1758589111782,0.57536197,4193.2,4193.1,2.32238686]
[1758589111987,0.78396197,4193.2,4193.1,2.32238686]
[1758589112584,0.57536197,4193.2,4193.1,2.32238686]
[1758589112891,0.26416197,4193.2,4193.1,2.32238686]
[1758589113089,0.57536197,4193.2,4193.1,2.32238686]
[1758589113394,1.21283197,4193.2,4193.1,2.32238686]
[1758589113592,0.57536197,4193.2,4193.1,2.32098686]
[1758589113786,0.26416197,4193.2,4193.1,2.32098686]
[1758589115490,1.21283197,4193.2,4193.1,2.32098686]
[1758589115686,0.78396197,4193.2,4193.1,2.32098686]
[1758589116198,0.99806197,4193.2,4193.1,0.9954]
[1758589116489,0.99806197,4193.2,4193.1,2.32098686]
[1758589116691,0.99806197,4193.2,4193.1,2.07998686]
[1758589116884,0.99806197,4193.2,4193.1,2.32098686]
[1758589118988,0.99806197,4193.2,4193.1,2.00928686]
[1758589120998,0.99806197,4193.2,4193.1,1.76828686]
[1758589121187,1.66461525,4193.2,4193.1,1.77308686]
[1758589122297,1.66461525,4193.2,4193.1,1.56658686]
[1758589123094,1.66462893,4193.2,4193.1,1.56658686]
[1758589124896,1.66462893,4193.2,4193.1,1.77308686]
[1758589126901,0.99806197,4193.2,4193.1,1.77308686]
[1758589130601,1.66666304,4193.2,4193.1,1.77308686]
[1758589131099,0.99806197,4193.2,4193.1,1.77308686]
[1758589131302,1.66665997,4193.2,4193.1,1.77308686]
[1758589131607,1.66665997,4193.2,4193.1,1.98828686]
[1758589131898,0.99806197,4193.2,4193.1,2.29998686]
[1758589132499,0.78396197,4193.2,4193.1,2.29998686]
[1758589132704,0.26416197,4193.2,4193.1,2.29998686]
[1758589133008,0.26512524,4193.2,4193.1,2.72885686]
[1758589133600,0.42883,4193.6,4193.3,0.42886]
[1758589133808,0.42883,4193.6,4193.5,2.05898686]
[1758589133994,1.36254856,4193.6,4193.5,2.05898686]
[1758589134199,1.67374856,4193.6,4193.5,2.05898686]
[1758589134804,1.24491856,4193.6,4193.5,2.05898686]
[1758589135899,1.45351856,4193.6,4193.5,2.05898686]
[1758589136504,1.66761856,4193.6,4193.5,2.05898686]
[1758589136700,1.66761856,4193.6,4193.5,1.87905835]
[1758589140101,1.66761856,4193.6,4193.5,1.14565835]
[1758589142495,0.5255,4193.3,4193.2,1.38665835]
[1758589142695,1.000013,4193.3,4193.2,1.38665835]
[1758589142894,1.66861856,4193.3,4193.2,1.38665835]
[1758589143094,1.66861856,4193.3,4193.2,1.59395835]
[1758589145907,1.66861856,4193.3,4193.2,1.14565835]
[1758589148109,1.66861856,4193.3,4193.2,1.35295835]
[1758589148503,1.66861856,4193.3,4192.8,0.3241]
[1758589148707,0.7349,4192.9,4192.8,0.4166]
[1758589148912,1.000013,4192.9,4192.8,0.4166]
[1758589149316,0.4158,4192.2,4192.1,0.5314]
[1758589149511,1.000013,4192.2,4192.1,0.4483]
[1758589149705,1.000013,4192.2,4192.1,41.2483]
[1758589150012,1.000013,4192.2,4192.1,42.39395835]
[1758589150613,1.000013,4192.2,4192.1,2.12735835]
[1758589152415,1.000013,4192.2,4192.1,1.59395835]
[1758589152714,1.000013,4192.2,4192.1,1.80325835]
[1758589152902,1.000013,4192.2,4192.1,2.12735835]
[1758589155612,1.000013,4192.2,4192.1,1.59395835]
[1758589156615,1.00332518,4192.2,4192.1,1.59395835]
[1758589159715,1.00332518,4192.2,4192.1,1.14565835]
[1758589159923,1.3057,4192.0,4191.9,1.38665835]
[1758589160220,1.14512518,4192.0,4191.9,1.59135835]
[1758589160418,1.14512518,4192.0,4191.9,2.11845835]
[1758589162625,0.8767,4192.0,4191.9,2.11845835]
[1758589162925,1.14431976,4192.0,4191.9,2.11845835]
[1758589164630,1.14430323,4192.0,4191.9,2.11845835]
[1758589167329,0.58810323,4192.0,4191.9,2.11845835]
[1758589167627,0.26760323,4192.0,4191.9,2.11845835]
[1758589167929,0.3205,4192.7,4192.6,0.7318]
[1758589168228,0.532,4192.7,4192.6,1.87745835]
[1758589171930,0.7457,4192.7,4192.6,0.4114]
[1758589172233,1.42821008,4192.7,4192.6,0.2047]
[1758589172731,1.42821008,4192.7,4192.5,0.241]
[1758589172732,1.18893,4192.6,4192.5,0.241]
[1758589172923,1.87144008,4192.6,4192.5,0.241]
[1758589173322,1.18897,4192.2,4192.1,1.80405835]
[1758589174432,4.39677,4192.2,4191.9,1.14565835]
[1758589174728,1.3223,4192.0,4191.9,1.34965835]
[1758589174933,2.00517039,4192.0,4191.9,1.59065835]
[1758589175235,0.42903,4191.7,4191.6,1.14565835]
[1758589175533,1.18903,4191.7,4191.6,1.59065835]
[1758589175726,4.39683,4191.7,4191.6,1.59065835]
[1758589177232,4.39683,4191.7,4191.6,1.34965835]
[1758589177532,4.39683,4191.7,4191.6,0.241]
[1758589178131,4.39683,4191.7,4191.6,1.59065835]
[1758589178332,3.2078,4191.7,4191.6,2.12745835]
[1758589178633,3.2078,4191.7,4191.6,3.2731167]
[1758589178931,0.3249,4192.0,4191.6,3.2731167]
[1758589179130,0.7539,4192.0,4191.9,1.88645835]
[1758589179332,1.65869484,4192.0,4191.9,1.88645835]
[1758589179728,1.92321483,4192.0,4191.9,1.88645835]
[1758589180630,1.92321483,4192.0,4191.9,2.12745835]
[1758589181223,1.70180691,4192.0,4191.9,2.12745835]
[1758589181930,1.92320691,4192.0,4191.9,2.12745835]
[1758589182734,2.27020691,4192.0,4191.9,1.59065835]
[1758589183631,2.27020691,4192.0,4191.9,1.80405835]
[1758589184350,1.92320691,4192.0,4191.9,2.12745835]
[1758589184537,1.37690691,4192.0,4191.9,2.12745835]
[1758589185034,1.70180691,4192.0,4191.9,2.12745835]
[1758589185733,1.92320691,4192.0,4191.9,2.12745835]
[1758589186732,2.27020691,4192.0,4191.9,0.6584]
[1758589186937,1.92320691,4192.0,4191.9,0.9818]
[1758589187735,2.05650691,4192.0,4191.9,0.9818]
[1758589188131,3.2078,4192.8,4191.9,5.22034999]
[1758589188435,0.42896,4192.4,4192.3,0.7408]
[1758589188736,0.75386,4192.4,4192.3,41.7818]
[1758589188934,1.43739117,4192.4,4192.3,41.7818]
[1758589189541,1.43739117,4192.4,4192.3,42.92745835]
[1758589194845,0.68353117,4192.4,4192.3,42.92745835]
[1758589195344,0.42895,4192.5,4192.4,0.7408]
[1758589196646,0.42895,4192.5,4192.4,2.06696864]
[1758589197645,0.75385,4192.5,4192.4,2.06696864]
[1758589198644,0.97525,4192.5,4192.4,2.06696864]
[1758589200346,1.94116201,4192.5,4192.4,0.241]
[1758589200544,1.94116201,4192.5,4192.4,2.32396864]
[1758589200748,1.25827638,4192.5,4192.4,2.32396864]
[1758589201046,1.42837638,4192.5,4192.4,2.32396864]
[1758589201451,0.26092638,4192.5,4192.4,2.56248864]
[1758589201646,0.3034,4193.1,4193.0,0.7568]
[1758589201853,0.3034,4193.1,4193.0,2.32396864]
[1758589201854,0.73228,4193.1,4193.0,2.32396864]
[1758589202151,1.83144584,4193.1,4193.0,0.4603]
[1758589203352,1.27344,4192.5,4192.4,0.2193]
[1758589203549,1.27344,4192.5,4192.4,0.4603]
[1758589203741,0.3034,4192.4,4192.1,1.32616864]
[1758589204051,0.42899,4192.1,4192.0,0.7568]
[1758589204249,0.42899,4192.1,4192.0,2.44306864]
[1758589204447,0.42899,4192.1,4192.0,43.24306864]
[1758589205345,0.3034,4192.4,4192.1,0.3141]
[1758589205346,0.42895,4192.4,4192.1,0.3141]
[1758589205552,0.3034,4192.8,4192.7,0.7568]
[1758589205747,0.3034,4192.8,4192.7,0.9978]
[1758589206051,0.93631,4192.8,4192.7,2.32396864]
[1758589206356,1.14861,4192.8,4192.7,2.32396864]
[1758589207349,1.14861,4192.8,4192.7,2.00986864]
[1758589208048,0.42891,4192.8,4192.7,2.32396864]
[1758589209549,3.2078,4193.6,4192.8,0.87161]
[1758589209755,3.5112,4193.6,4193.5,2.08296864]
[1758589209952,4.8266374,4193.6,4193.5,2.32396864]
[1758589210848,4.14403,4193.6,4193.5,2.32396864]
[1758589212551,4.35633,4193.6,4193.5,2.32396864]
[1758589213153,4.35633,4193.6,4193.5,2.00986864]
[1758589213647,4.60486952,4193.6,4193.5,2.00986864]
[1758589214054,4.60486952,4193.6,4193.5,0.6837]
[1758589214250,4.60486952,4193.6,4193.5,2.00986864]
[1758589215057,4.60486952,4193.6,4193.5,2.32396864]
[1758589215247,1.39706952,4193.6,4193.5,2.32396864]
[1758589215448,1.39706952,4193.6,4193.5,2.00986864]
[1758589215954,1.39706952,4193.6,4193.5,2.34366864]
[1758589216250,0.98076952,4193.6,4193.5,2.34366864]
[1758589216456,1.18636952,4193.6,4193.5,2.34366864]
[1758589216758,1.39026952,4193.6,4193.5,2.00986864]
[1758589218256,1.39026952,4193.6,4193.5,0.241]
[1758589220358,1.39026952,4193.6,4193.5,0.4624]
[1758589220959,1.39026952,4193.6,4193.5,0.241]
[1758589221563,0.96143952,4193.6,4193.5,1.0155]
[1758589221865,0.24853952,4193.6,4193.5,1.0817]
[1758589222363,0.55163952,4193.6,4193.5,41.8817]
[1758589222754,0.55163952,4193.6,4193.5,41.8155]
[1758589223650,0.24853952,4193.6,4193.5,41.8155]
[1758589223847,0.93747,4194.2,4194.1,0.7745]
[1758589224051,0.93747,4194.2,4194.1,2.34166864]
[1758589224261,1.14137,4194.2,4194.1,2.00786864]
[1758589227662,1.14137,4194.2,4194.1,0.241]
[1758589228267,1.14137,4194.2,4194.1,0.4624]
[1758589228860,1.14137,4194.2,4194.1,0.241]
[1758589229459,1.14141,4193.8,4193.7,1.54756864]
[1758589229653,1.14141,4193.8,4193.7,1.78856864]
[1758589229856,1.14141,4193.8,4193.7,2.34166864]
[1758589230256,1.14141,4193.8,4193.7,2.00786864]
[1758589230766,1.14141,4193.8,4193.5,44.3416]
[1758589230767,0.42883,4193.6,4193.5,3.2078]
[1758589230966,1.17563,4193.6,4193.5,3.4488]
[1758589232867,1.17563,4193.6,4193.5,3.6554]
[1758589235272,1.17563,4193.6,4193.5,3.8763]
[1758589235478,1.17563,4193.6,4193.5,4.1839]
[1758589235772,1.41188509,4193.6,4193.5,4.1839]
[1758589236666,1.41188509,4193.6,4193.5,3.8763]
[1758589238076,1.41188509,4193.6,4193.5,0.6685]
[1758589241380,2.09272187,4193.6,4193.5,0.6685]
[1758589241581,1.41188509,4193.6,4193.5,0.6685]
[1758589243273,1.41188509,4193.6,4193.5,0.241]
[1758589243475,2.09271681,4193.6,4193.5,0.241]
[1758589243777,0.8698,4193.5,4193.4,1.32616864]
[1758589243967,1.10605509,4193.5,4193.4,1.56716864]
[1758589244172,1.10605509,4193.5,4193.4,0.241]
[1758589244691,1.10605509,4193.5,4193.4,0.9761]
[1758589244882,1.10605509,4193.5,4193.4,0.6685]
[1758589246187,1.10605509,4193.5,4193.4,0.241]
[1758589246385,1.78680094,4193.5,4193.4,0.241]
[1758589247988,0.8626,4192.9,4192.8,3.4144]
[1758589248296,1.41195509,4192.9,4192.8,0.2066]
[1758589248494,1.41195509,4192.9,4192.8,41.2476]
[1758589249590,2.09228639,4192.9,4192.8,41.5552]
[1758589249787,2.09239659,4192.9,4192.8,41.5552]
[1758589250495,1.41206529,4192.9,4192.8,41.5552]
[1758589250695,0.54946529,4192.9,4192.8,41.5552]
[1758589252588,0.23636529,4192.9,4192.8,41.5552]
[1758589253090,0.54946529,4192.9,4192.8,41.5552]
[1758589253998,0.54934932,4192.9,4192.8,41.5552]
[1758589256595,0.54934932,4192.9,4192.8,42.70114602]
[1758589259785,0.23624932,4192.9,4192.8,42.70114602]
[1758589261291,0.42884,4193.5,4193.4,0.4313]
[1758589261494,1.99257744,4193.5,4193.4,0.6723]
[1758589261703,1.99257744,4193.5,4193.4,0.241]
[1758589261898,1.99257744,4193.5,4193.4,0.4531]
[1758589262198,1.99254583,4193.5,4193.4,0.4531]
[1758589262993,1.86454583,4193.5,4193.4,0.9863]
[1758589263197,0.67870583,4193.5,4193.4,4.1941]
[1758589263400,0.42884,4193.6,4193.5,0.8115]
[1758589263589,0.42882,4193.8,4193.7,0.4313]
[1758589263794,0.42882,4193.8,4193.7,2.13224602]
[1758589264099,0.74852,4193.8,4193.7,2.13224602]
[1758589264300,1.18582,4193.8,4193.7,2.13224602]
[1758589264600,1.86459802,4193.8,4193.7,2.13224602]
[1758589264793,1.86459802,4193.8,4193.7,1.81824602]
[1758589265100,1.86459802,4193.8,4193.7,1.59904602]
[1758589267889,0.42885,4193.4,4193.3,1.14594602]
[1758589268090,1.18585,4193.4,4193.3,1.59904602]
[1758589268291,1.18585,4193.4,4193.3,0.241]
[1758589270203,1.86459721,4193.4,4193.3,0.241]
[1758589273404,2.12163296,4193.4,4193.3,0.241]
[1758589274804,1.1859,4192.9,4192.8,1.59904602]
[1758589275108,1.44293575,4192.9,4192.8,1.59904602]
[1758589275306,1.44293575,4192.9,4192.8,1.81824602]
[1758589278709,1.44293575,4192.9,4192.8,0.241]
[1758589279601,2.12112523,4192.9,4192.8,0.241]
[1758589284513,1.17133,4192.7,4192.6,1.14594602]
[1758589284699,2.10655523,4192.7,4192.6,1.14594602]
[1758589286309,1.42836575,4192.7,4192.6,1.14594602]
[1758589286607,1.29915,4192.5,4192.4,0.241]
[1758589286813,1.55618575,4192.5,4192.4,0.241]
[1758589288603,0.7424,4192.4,4192.3,1.14594602]
[1758589288808,1.67722818,4192.4,4192.3,1.14594602]
[1758589289305,0.4297,4192.1,4192.0,1.36064602]
[1758589289504,0.99943575,4192.1,4192.0,1.36064602]
[1758589290112,1.42842575,4192.1,4192.0,1.36064602]
[1758589290506,1.42842575,4192.1,4192.0,1.14594602]
[1758589290704,1.15382,4191.8,4191.7,1.14594602]
[1758589290906,1.41085575,4191.8,4191.7,1.14594602]
[1758589291710,1.41085575,4191.8,4191.6,0.241]
[1758589291911,0.98183575,4191.7,4191.6,0.241]
[1758589292511,4.18963575,4191.7,4191.6,0.241]
[1758589293511,0.5356,4191.5,4191.4,1.14594602]
[1758589293810,1.11701455,4191.5,4191.4,1.14594602]
[1758589294008,0.7248,4191.3,4191.2,0.4445]
[1758589294204,0.99541455,4191.3,4191.2,0.4445]
[1758589295912,0.84313,4190.7,4190.6,3.2078]
[1758589296118,1.42454455,4190.7,4190.6,0.4101]
[1758589296418,1.42454455,4190.7,4190.5,1.14594602]
[1758589296419,0.7248,4190.6,4190.5,1.14594602]
[1758589296617,0.99541455,4190.6,4190.5,1.14594602]
[1758589297016,0.42917,4190.3,4190.2,1.14594602]
[1758589297218,1.42458455,4190.3,4190.2,0.241]
[1758589297718,1.42458455,4190.3,4190.2,1.38694602]
[1758589298717,1.42458455,4190.3,4190.2,0.241]
[1758589298911,1.42458455,4190.3,4190.2,1.38694602]
[1758589299317,0.84319,4190.1,4190.0,3.8589]
[1758589299516,1.42460455,4190.1,4190.0,5.00484602]
[1758589299706,1.42460455,4190.1,4190.0,5.32374602]
[1758589301311,1.21670455,4190.1,4190.0,5.32374602]
[1758589301717,0.27061455,4190.1,4190.0,5.38844602]
[1758589301919,0.26916492,4190.1,4190.0,5.38844602]
[1758589302417,0.26916492,4190.1,4190.0,46.18844602]
[1758589303422,0.57996492,4190.1,4190.0,46.12374602]
[1758589305724,0.99396492,4190.1,4190.0,4.79824602]
[1758589306018,0.2061,4189.5,4189.4,1.59044602]
[1758589306227,0.5169,4189.5,4189.4,2.11594602]
[1758589306527,0.78592759,4189.5,4189.4,2.11594602]
[1758589307223,1.11542759,4189.5,4189.4,2.11594602]
[1758589307811,0.99382759,4189.5,4189.4,2.11594602]
[1758589308014,0.26902759,4189.5,4189.4,2.11594602]
[1758589311126,0.26902759,4189.5,4189.4,42.91594602]
[1758589311922,1e-08,4189.5,4189.4,47.15463601]
[1758589312116,0.73997,4190.3,4190.0,0.4756]
[1758589312316,0.3108,4190.2,4190.1,0.7634]
[1758589312520,0.5169,4190.2,4190.1,0.97]
[1758589313626,0.5169,4190.2,4190.1,2.11594602]
[1758589315523,0.42917,4190.3,4190.1,2.11594602]
[1758589315726,0.7248,4190.3,4190.2,0.2035]
[1758589316728,1.40163736,4190.3,4190.2,0.2035]
[1758589318629,0.84318,4190.2,4190.1,0.241]
[1758589318830,1.83081736,4190.2,4190.1,0.241]